[Event "MPL-4 Indian Chess Tour 2022"]
[Site "Chess24"]
[Date "2022.09.27"]
[Round "2.3"]
[White "Ganguly, Surya Shekhar"]
[Black "Vaibhav, Suri"]
[Result "1-0"]
[ECO "D32"]
[WhiteElo "2589"]
[BlackElo "2600"]
[Annotator "TA"]
[PlyCount "83"]
[EventDate "2022.09.29"]
[EventType "tourn (rapid)"]
[EventCountry "NET"]
[SourceTitle "playchess.com"]
[Source "ChessBase"]
[SourceQuality "1"]
[WhiteTeam "India"]
[BlackTeam "India"]
[WhiteTeamCountry "IND"]
[BlackTeamCountry "IND"]
[TimeControl "900+10"]

{[%evp 14,83,7,0,-3,-41,0,0,0,0,0,0,0,-7,22,16,21,15,28,5,9,-5,8,1,47,0,22,21,20,1,9,10,6,0,0,0,0,0,75,69,94,92,95,93,80,0,47,0,64,0,0,-83,0,0,0,0,0,-17,0,-12,0,0,77,80,85,87,29991,29992,29996,29996,29996,29997]} 1. Nf3 {[%emt 0:00:00]} d5 {[%emt 0:00:00]} 2. e3 {[%emt 0:00:02]} e6 {[%emt 0:00:05]} 3. c4 {[%emt 0:00:04]} c5 {[%emt 0:00:05]} 4. d4 {[%emt 0:00:17]} Nf6 {[%emt 0:00:22]} 5. Nc3 {[%emt 0:00:02]} Nc6 {[%emt 0:00:34]} 6. cxd5 {[%emt 0:00:02]} exd5 {[%emt 0:00:16]} 7. dxc5 {[%emt 0:00:40]} Bxc5 {[%emt 0:00:02]} 8. Bb5 {[%emt 0:00:01]} O-O {[%emt 0:00:08] D32: Tarrasch Defence: Sidelines and lines without g3.} 9. O-O {[%emt 0:00:02]} Bg4 {[%emt 0:00:32]} (9... a6 $5 {[%cal Ra6b5]} 10. Bd3 Bg4 $11) 10. h3 {[%emt 0:00:23]} Bh5 {[%emt 0:00:01] The position is equal.} 11. Be2 {[%emt 0:00:07]} Rc8 {[%emt 0:01:02]} 12. b3 {[%emt 0:02:00] [#]} d4 $146 {[%emt 0:03:28]} ({Predecessor:} 12... Bxf3 13. Bxf3 d4 14. Na4 b6 15. Nxc5 bxc5 16. exd4 Nxd4 17. Bb2 Qb6 18. Rc1 Rfd8 {0-1 (49) Garcia,J-Vera,I Bento Goncalves 2000}) 13. Na4 {[%emt 0:00:08]} Bd6 {[%emt 0:00:02]} (13... Bb4 $5 {[%cal Rd4e3]}) 14. Nxd4 {[%emt 0:00:37]} Nxd4 {[%emt 0:00:06]} 15. exd4 {[%emt 0:00:14]} Bg6 {[%emt 0:02:03]} 16. Bg5 {[%emt 0:01:25][%cal Oa4c5]} Bb8 {[%emt 0:00:21]} 17. Nc5 {[%emt 0:00:45]} b6 {[%emt 0:02:12]} 18. Na6 {[%emt 0:00:11]} Bc2 {[%emt 0:00:02]} (18... Bd6 $11) 19. Qc1 {[%emt 0:00:55]} (19. Qe1 $14 {might be stronger.}) 19... Re8 {[%emt 0:01:20]} 20. Bc4 {[%emt 0:01:24]} Bd3 {[%emt 0:00:21]} 21. Rd1 {[%emt 0:00:01]} Be2 {[%emt 0:00:24] Strongly threatening ...b5.} 22. Re1 {[%emt 0:01:48]} b5 {[%emt 0:02:53]} 23. Qb2 {[%emt 0:00:18]} bxc4 {[%emt 0:01:02]} 24. Rxe2 {[%emt 0:00:02]} c3 $1 {[%emt 0:00:01]} 25. Rxe8+ {[%emt 0:00:01]} Nxe8 {[%emt 0:00:29] [#]} (25... Qxe8 $11 26. Qa3 h6) 26. Qc1 $1 $16 {[%emt 0:01:37]} (26. Qxc3 f6 27. Bxf6 Nxf6 $17) 26... Qxd4 {[%emt 0:00:01] Threatens to win with ...Bd6.} 27. Nxb8 {[%emt 0:00:01]} Rxb8 {[%emt 0:00:01]} 28. Qe3 {[%emt 0:00:32]} ({Resist} 28. Be3 Qd3 $14) 28... Qd5 {[%emt 0:01:09] [#]} 29. Re1 {[%emt 0:01:15]} (29. Rc1 $1 $16) 29... h6 {[%emt 0:00:06]} (29... h5 $1 $11) 30. Bxh6 {[%emt 0:00:12]} ({Not} 30. Qxa7 Ra8 31. Qe3 hxg5 $17) (30. Qg3 $1 $14 Rc8 31. Bxh6) 30... Rc8 {[%emt 0:00:08]} (30... c2 $1 $11) 31. Bf4 {[%emt 0:00:24]} (31. Qg3 $14 Kf8 32. Qg4 (32. Rxe8+ $2 Kxe8 33. Qxg7 c2 $19)) 31... c2 $11 {[%emt 0:00:06]} 32. Qd2 {[%emt 0:00:33] Inhibits Qd1.} (32. Rc1 $11 {keeps the balance.}) 32... Qf5 {[%emt 0:00:09]} (32... Qxd2 $17 33. Bxd2 Rd8) 33. g4 {[%emt 0:00:27]} Qc5 {[%emt 0:00:14]} 34. Qd3 {[%emt 0:01:51]} Nf6 {[%emt 0:00:08]} 35. Bc1 {[%emt 0:00:04]} Qa5 {[%emt 0:00:27]} 36. Kf1 {[%emt 0:00:31]} Qxa2 {[%emt 0:00:33]} 37. g5 {[%emt 0:00:01]} Ne8 {[%emt 0:00:00]} (37... Nh7 $1 $11 {remains equal.}) 38. g6 $16 {[%emt 0:00:10]} fxg6 {[%emt 0:00:02]} 39. Qxg6 $40 {[%emt 0:00:17][%mdl 128] White wants to mate with Qe6+. White has strong attack.} Nf6 $2 {[%emt 0:00:03][%mdl 8192]} (39... Nc7 $16) 40. Re7 {[%emt 0:00:08][%csl Ge7][%cal Rg6g7] White mates.} Nh5 {[%emt 0:00:29]} 41. Qe6+ {[%emt 0:00:19]} Kh7 {[%emt 0:00:08]} 42. Qf5+ {[%emt 0:00:01] Weighted Error Value: White=0.14 (very precise) /Black=0.29 (precise)} 1-0

[Event "MPL-4 Indian Chess Tour 2022"]
[Site "Chess24"]
[Date "2022.09.27"]
[Round "2.4"]
[White "Mendonca, Leon Luke"]
[Black "Mitrabha, Guha"]
[Result "1-0"]
[ECO "A34"]
[WhiteElo "2558"]
[BlackElo "2471"]
[Annotator "TA"]
[PlyCount "65"]
[EventDate "2022.09.29"]
[EventType "tourn"]
[EventCountry "NET"]
[SourceTitle "playchess.com"]
[Source "ChessBase"]
[SourceQuality "1"]
[TimeControl "900+10"]

{[%evp 9,65,7,22,2,26,20,25,29,31,18,23,24,68,28,125,112,127,122,102,105,185,188,187,185,229,166,158,165,159,140,139,116,127,132,124,99,156,141,160,130,444,435,375,281,277,154,293,275,300,272,490,470,781,738,948,953,6544,770]} 1. Nf3 {[%emt 0:00:00]} Nf6 {[%emt 0:00:00]} 2. c4 {[%emt 0:00:17]} c5 {[%emt 0:00:07]} 3. Nc3 {[%emt 0:00:05]} Nc6 {[%emt 0:00:18]} 4. e3 {[%emt 0:00:25]} e5 {[%emt 0:00:26]} 5. d4 {[%emt 0:00:07]} e4 {[%emt 0:01:26]} 6. Ne5 {[%emt 0:00:43] A34: Symmetrical English: 2 Nc3, lines with ...d5.} Bd6 {[%emt 0:00:55]} 7. Ng4 {[%emt 0:02:21]} Nxg4 {[%emt 0:00:37]} 8. Qxg4 {[%emt 0:00:03] White has an edge.} O-O {[%emt 0:00:02]} 9. dxc5 {[%emt 0:00:33]} (9. Qxe4 cxd4 10. Bd3 (10. exd4 $2 Re8 $19) 10... g6 $15) (9. Nxe4 $2 f5 10. Qf3 fxe4 11. Qxe4 Qe7 $19) 9... f5 {[%emt 0:00:57]} 10. Qd1 {[%emt 0:00:04] [#]} Be7 $146 {[%emt 0:00:29]} ({Predecessor:} 10... Be5 11. Bd2 Qe7 12. Nd5 Qxc5 13. b4 Qd6 14. b5 Bxa1 15. Qxa1 Rd8 16. bxc6 dxc6 {1-0 (35) Meier,G (2628)-Perunovic,M (2564) chess24.com INT 2019}) 11. a3 {[%emt 0:01:03]} Qa5 {[%emt 0:00:37]} (11... d6 $1 $11) 12. Be2 $16 {[%emt 0:01:08]} Qxc5 {[%emt 0:00:24]} 13. b4 {[%emt 0:00:02]} Qe5 {[%emt 0:00:44]} 14. Bb2 {[%emt 0:00:03]} f4 {[%emt 0:01:17]} (14... d6 $16 {might work better.}) 15. exf4 $18 {[%emt 0:01:43]} Qxf4 {[%emt 0:00:03]} 16. O-O {[%emt 0:00:11]} e3 {[%emt 0:02:06]} (16... Bd6 $2 17. Qd5+ Kh8 18. g3) 17. Nd5 {[%emt 0:00:51]} exf2+ {[%emt 0:00:10]} 18. Kh1 {[%emt 0:00:01] Really sharp!} Qh6 {[%emt 0:00:10]} 19. Nxe7+ {[%emt 0:00:49]} Nxe7 {[%emt 0:00:01]} 20. Bf3 {[%emt 0:00:13] Inhibits d5.} d6 {[%emt 0:01:34]} 21. Qe2 {[%emt 0:01:04]} Be6 {[%emt 0:01:10]} 22. Rxf2 {[%emt 0:00:42]} Nf5 {[%emt 0:01:41] [#]} (22... Nc6 $142) 23. Kg1 $1 $16 {[%emt 0:00:55] Threatens to win with Raf1.} Rae8 {[%emt 0:00:03]} 24. Bxb7 {[%emt 0:01:20] Strongly threatening Bc6. This bishop pair is nice.} Kh8 $2 {[%emt 0:01:03][%mdl 8192] This costs Black the game.} (24... Ne3 $16 {is tougher.}) 25. Raf1 $18 {[%emt 0:01:10]} Rg8 {[%emt 0:01:09]} 26. Bc1 {[%emt 0:02:09]} Qh4 {[%emt 0:00:17]} 27. Qe4 {[%emt 0:00:42]} (27. Rf4 $18 Qd8 28. Qf2) 27... Qd8 {[%emt 0:00:23]} (27... Qxe4 $16 28. Bxe4 Ne3) 28. Bd5 {[%emt 0:00:26]} (28. Rxf5 Bxf5 29. Qd4 (29. Qxf5 Rgf8 $11) 29... Qc7 $11) 28... Bxd5 {[%emt 0:00:14]} 29. Qxd5 {[%emt 0:00:00]} Re5 {[%emt 0:00:01] [#]} (29... Ne7 30. Qd3 Ng6) 30. Qd3 {[%emt 0:00:03] White is clearly winning.} ({Worse is} 30. Rxf5 Rxd5 31. Rxd5 Qb6+ 32. c5 dxc5 33. bxc5 Qb3 $15) 30... Qb6 {[%emt 0:00:18]} (30... Nh4 $142 31. Bf4 Re6) 31. Bb2 {[%emt 0:00:12]} Ree8 {[%emt 0:00:43]} 32. Qxf5 {[%emt 0:00:07]} Rgf8 {[%emt 0:00:04]} 33. c5 {[%emt 0:00:11] Weighted Error Value: White=0.18 (very precise) /Black=0.51} 1-0

[Event "MPL-4 Indian Chess Tour 2022"]
[Site "Chess24"]
[Date "2022.09.27"]
[Round "2.5"]
[White "Mohammad Nubairshah Shaikh"]
[Black "Sethuraman, S.P."]
[Result "0-1"]
[ECO "E35"]
[WhiteElo "2461"]
[BlackElo "2638"]
[Annotator "TA"]
[PlyCount "106"]
[EventDate "2022.09.29"]
[EventType "tourn (rapid)"]
[EventCountry "NET"]
[SourceTitle "playchess.com"]
[Source "ChessBase"]
[SourceQuality "1"]
[WhiteTeam "India"]
[BlackTeam "India"]
[WhiteTeamCountry "IND"]
[BlackTeamCountry "IND"]
[TimeControl "900+10"]

{[%evp 12,106,12,11,4,14,8,5,13,0,0,0,9,0,0,0,0,0,0,-14,-6,-8,-9,-52,-48,-41,-18,-43,0,0,0,0,0,0,0,-69,-20,-36,-33,-31,0,0,0,0,0,0,0,0,0,0,0,0,0,-84,-91,-68,-53,-147,-149,-160,-151,-155,-155,-151,-175,-141,-135,-127,-119,-283,-177,-731,-731,-697,-689,-690,-654,-852,-899,-885,-873,-839,-838,-814,-763,-1064,-1053,-957,-891,-1662,-1401,-12840,-12840,-12845,-12845,-12846,-12846]} 1. d4 {[%emt 0:00:00]} Nf6 {[%emt 0:00:00]} 2. c4 {[%emt 0:00:02]} e6 {[%emt 0:00:01]} 3. Nc3 {[%emt 0:00:03]} d5 {[%emt 0:00:01]} 4. cxd5 {[%emt 0:00:04]} exd5 {[%emt 0:00:01]} 5. Bg5 {[%emt 0:00:03][%cal Bc1g5,Bg5h4,Bh4g3,Bg3e5,Be5h2][%mdl 32]} Bb4 {[%emt 0:00:01]} 6. Qc2 {[%emt 0:00:33]} h6 {[%emt 0:00:41]} 7. Bh4 {[%emt 0:00:02] 7.Bh4 scores better than 7.Bxf6.} Nc6 {[%emt 0:00:46] E35: Nimzo-Indian: Classical: 4...d5 5 cxd5 exd5.} 8. e3 {[%emt 0:00:04]} g5 {[%emt 0:00:11]} 9. Bg3 {[%emt 0:00:02]} h5 {[%emt 0:00:06] The position is equal.} 10. Bb5 {[%emt 0:00:11]} h4 {[%emt 0:00:20]} 11. Be5 {[%emt 0:00:03]} O-O {[%emt 0:00:01]} 12. Bxc6 {[%emt 0:00:14]} bxc6 {[%emt 0:00:07]} 13. h3 {[%emt 0:00:04]} Ne4 {[%emt 0:02:11]} 14. Nge2 {[%emt 0:01:08]} Bf5 {[%emt 0:00:47] Strongly threatening ...f6.} 15. Qc1 {[%emt 0:00:07]} f6 {[%emt 0:00:40]} 16. Bh2 {[%emt 0:00:04]} Nxc3 {[%emt 0:01:14]} 17. bxc3 {[%emt 0:00:09]} Bd6 $36 {[%emt 0:00:02][%mdl 2048] White is under pressure. A strong pair of Bishops.} 18. O-O {[%emt 0:02:05]} Rb8 {[%emt 0:00:02] [#]} 19. Rd1 $146 {[%emt 0:01:35]} ({Predecessor:} 19. Qd2 Bxh2+ 20. Kxh2 Qd6+ 21. Kg1 Qa3 22. Nc1 Rb2 23. Qd1 Qxc3 24. Nb3 Qc2 25. Qxc2 Rxc2 {0-1 (44) Schlecht,D (2363)-Heimann,A (2522) Deizisau 2014}) 19... Rb7 {[%emt 0:01:24]} 20. c4 {[%emt 0:00:14]} Bxh2+ {[%emt 0:00:09]} 21. Kxh2 {[%emt 0:00:00]} Qd6+ {[%emt 0:00:01]} 22. Kg1 {[%emt 0:00:24]} Rfb8 {[%emt 0:00:03]} 23. cxd5 {[%emt 0:00:38]} (23. Nc3 $11) 23... cxd5 {[%emt 0:00:02] Black is more active.} (23... Rb2 $1 $15 24. Re1 (24. Rd2 $2 Rb1 $19) 24... cxd5) 24. Qc5 {[%emt 0:00:01]} Qxc5 {[%emt 0:02:06]} 25. dxc5 {[%emt 0:00:03]} c6 {[%emt 0:00:00]} (25... Rb2 $5 {[%cal Rb2e2]} 26. Nd4 Be4 $11) 26. Nd4 {[%emt 0:00:50][%csl LRc6,LRf5]} Bd7 {[%emt 0:00:02]} 27. Rd3 {[%emt 0:00:03]} Rb2 {[%emt 0:02:39]} 28. Ra3 {[%emt 0:00:04]} R8b7 {[%emt 0:00:17]} 29. Rd1 {[%emt 0:05:07]} Kf7 {[%emt 0:00:20]} 30. Ra6 {[%emt 0:00:04]} Rc7 {[%emt 0:00:04]} 31. Kf1 {[%emt 0:02:56]} Ke8 {[%emt 0:01:03]} 32. Rd3 {[%emt 0:00:44]} (32. Rc1 $11) 32... Rb1+ $17 {[%emt 0:00:49]} 33. Ke2 {[%emt 0:00:02]} Rc1 {[%emt 0:00:39]} 34. Nb3 {[%emt 0:00:08] [#]} ({White should try} 34. Rda3 $15) 34... Rg1 $1 {[%emt 0:00:24]} 35. Rd1 {[%emt 0:01:31]} Rxg2 {[%emt 0:00:07]} 36. Rh1 {[%emt 0:00:02] And now Kf1 would win.} ({Avoid the trap} 36. Nd4 $2 Rb7 37. Kd3 Rxf2 $19) 36... g4 {[%emt 0:01:20]} 37. hxg4 {[%emt 0:00:00]} Bxg4+ {[%emt 0:00:12]} 38. Kf1 {[%emt 0:00:03]} h3 {[%emt 0:00:03]} 39. Ra4 {[%emt 0:01:00]} Rb7 {[%emt 0:00:52] Prevents Rb4.} 40. Rf4 $2 {[%emt 0:00:39] Loses the game.} (40. Rxg4 $17 Rxg4 41. Rxh3) 40... Kf7 {[%emt 0:00:18] ...Kg6 is the strong threat.} 41. Rg1 $2 {[%emt 0:00:15] [#]} (41. Rxg4 Rxg4 42. Rxh3) 41... Be2+ $1 $19 {[%emt 0:01:13][%mdl 512] Black is clearly winning.} 42. Kxe2 {[%emt 0:00:07]} Rxg1 {[%emt 0:00:01][%mdl 4096] Endgame KRR-KRN} 43. Rh4 {[%emt 0:00:01]} a5 {[%emt 0:00:10][%cal Ba7a5,Ba5a4,Ba4a3,Ba3a2][%mdl 32] Threatens to win with ...a4!} 44. Rh7+ {[%emt 0:00:49]} Kg6 {[%emt 0:00:17]} 45. Rxh3 {[%emt 0:00:07]} a4 {[%emt 0:00:01]} 46. Nd4 {[%emt 0:00:01]} Rb2+ {[%emt 0:00:04]} 47. Kf3 {[%emt 0:00:03]} Rxa2 {[%emt 0:00:15]} 48. Nxc6 {[%emt 0:00:02]} a3 {[%emt 0:00:13]} 49. Ne7+ {[%emt 0:00:04]} Kf7 {[%emt 0:00:13]} 50. Rh7+ {[%emt 0:00:19]} Rg7 {[%emt 0:00:11]} 51. Rxg7+ {[%emt 0:00:09]} Kxg7 {[%emt 0:00:00]} 52. Nxd5 {[%emt 0:00:07]} Rc2 {[%emt 0:00:06]} 53. Nf4 {[%emt 0:00:36]} a2 {[%emt 0:00:04] Weighted Error Value: White=0.63/Black=0.06 (flawless)} 0-1

[Event "MPL-4 Indian Chess Tour 2022"]
[Site "Chess24"]
[Date "2022.09.27"]
[Round "2.6"]
[White "Narayanan.S.L"]
[Black "Aditya Mittal"]
[Result "0-1"]
[ECO "B23"]
[WhiteElo "2657"]
[BlackElo "2485"]
[Annotator "TA"]
[PlyCount "88"]
[EventDate "2022.09.29"]
[EventType "tourn"]
[EventCountry "NET"]
[SourceTitle "playchess.com"]
[Source "ChessBase"]
[SourceQuality "1"]
[TimeControl "900+10"]

{[%evp 16,88,3,-27,-13,-50,-32,-28,-11,-23,-15,-54,-37,-68,-45,-24,0,0,0,0,0,0,0,0,8,-12,38,-244,-243,-292,-286,-384,-379,-376,-188,-204,-194,-160,-242,-284,-249,-290,-274,-265,-299,-283,-266,-257,-233,-322,-322,-306,-297,-266,-79,-178,-178,-131,-8,-8,-8,-8,-8,-10,-10,-36,-43,-29984,-29984,-29986,-29987,-29987,-29988,-29987,-29988]} 1. e4 {[%emt 0:00:00]} c5 {[%emt 0:00:00]} 2. Nc3 {[%emt 0:00:02]} d6 {[%emt 0:00:01]} 3. f4 {[%emt 0:00:01]} g6 {[%emt 0:00:02]} 4. Nf3 {[%emt 0:00:00]} Bg7 {[%emt 0:00:01]} 5. Bc4 {[%emt 0:00:11]} Nc6 {[%emt 0:00:02]} 6. O-O {[%emt 0:00:02]} e6 {[%emt 0:00:01]} 7. d3 {[%emt 0:00:14]} Nge7 {[%emt 0:00:06]} 8. Qe1 {[%emt 0:00:03]} O-O {[%emt 0:00:06]} 9. Bb3 {[%emt 0:00:07] Recently 9.Qh4 got a lot of attention.} (9. Qh4 {is interesting.} a6 10. Bb3 Na5 11. f5) 9... Na5 {[%emt 0:01:05] B23: Closed Sicilian: Lines without g3.} 10. Kh1 {[%emt 0:01:45]} (10. e5 $5 {[%cal Rc3e4]}) 10... Nxb3 {[%emt 0:00:59]} 11. axb3 {[%emt 0:00:03]} Nc6 {[%emt 0:00:03] Black has an edge.} 12. Be3 {[%emt 0:00:07][%cal Oe4e5]} b6 {[%emt 0:00:24] [#]} 13. Qf2 $146 {[%emt 0:00:02]} ({Predecessor:} 13. Rd1 Bb7 14. Rd2 Qe7 15. Bf2 Bh6 16. Bh4 f6 17. Bg3 Nd4 18. Rdf2 Nxf3 19. Rxf3 {1-0 (38) Roca,P (2365)-Sanchez,J Greenhills 1997}) 13... f5 {[%emt 0:01:08]} 14. Rad1 {[%emt 0:00:18]} fxe4 {[%emt 0:00:42]} 15. dxe4 {[%emt 0:00:05]} Ba6 {[%emt 0:00:10]} 16. Rfe1 {[%emt 0:00:02]} Qe7 {[%emt 0:00:14]} 17. Qg3 {[%emt 0:00:23][%cal Of4f5]} Nb4 {[%emt 0:00:11]} 18. Rd2 {[%emt 0:00:11][%cal Of4f5]} Bb7 {[%emt 0:00:57]} 19. f5 {[%emt 0:04:36]} gxf5 {[%emt 0:00:50]} 20. Bg5 {[%emt 0:00:12]} Qf7 {[%emt 0:00:32]} (20... Qe8 $11) 21. Qxd6 $2 {[%emt 0:00:03][%mdl 8192]} (21. Nb5 $14 {stays ahead.} fxe4 22. Nxd6) 21... fxe4 $1 $19 {[%emt 0:01:40]} 22. Nxe4 {[%emt 0:00:10]} Qg6 $1 {[%emt 0:00:20]} 23. Nf6+ {[%emt 0:05:34]} (23. Ne5 Qxe4 24. Qxe6+ Kh8 $19) 23... Bxf6 {[%emt 0:01:17] This bishop pair is nice.} 24. Rxe6 {[%emt 0:00:02][%cal Rg5f6]} Rad8 {[%emt 0:05:03]} (24... Bxf3 $142 25. gxf3 Qxg5) 25. Qxd8 {[%emt 0:00:24]} Rxd8 {[%emt 0:00:08] Chess con chili.} ({Inferior is} 25... Bxd8 26. Rxg6+ hxg6 27. Bxd8 $11) 26. Rxd8+ {[%emt 0:00:17]} Bxd8 {[%emt 0:00:00]} 27. Rxg6+ {[%emt 0:00:02]} hxg6 {[%emt 0:00:00]} 28. Bxd8 {[%emt 0:00:01]} Bxf3 {[%emt 0:00:29]} ({Not} 28... Nxc2 29. Ne5 $15) 29. gxf3 {[%emt 0:00:06]} Nxc2 {[%emt 0:00:01][%mdl 4096] Endgame KB-KN} 30. Bc7 {[%emt 0:00:46]} Nd4 {[%emt 0:00:06][%csl LRb3,LRf3]} 31. Bb8 {[%emt 0:00:03]} Nc6 {[%emt 0:00:03]} ({Worse is} 31... Nxb3 32. Bxa7 b5 33. Kg2 $15) 32. Bf4 {[%emt 0:00:02] [#]} Kf7 $1 {[%emt 0:00:27]} 33. Kg2 {[%emt 0:00:03] [#]} Ke6 $1 {[%emt 0:00:07]} 34. Kg3 {[%emt 0:00:03]} Kf5 {[%emt 0:00:31]} (34... Nd4 $19 {is more deadly.} 35. Kg4 Nxb3) 35. h4 {[%emt 0:00:02]} (35. Bd6 $17 {might work better.}) 35... Nd4 {[%emt 0:00:54] Hoping for ...Ne2+.} 36. Bb8 {[%emt 0:00:04]} a5 {[%emt 0:00:11]} (36... Nxb3 $17 {Threatens to win with ...a5.} 37. Bxa7 b5) 37. Ba7 $11 {[%emt 0:00:20]} Nxb3 {[%emt 0:00:06]} 38. Bxb6 {[%emt 0:00:02]} a4 {[%emt 0:00:05][%cal Ba5a4,Ba4a3,Ba3a2][%mdl 32] And now ...c4 would win.} 39. Bd8 {[%emt 0:00:14]} Ke6 {[%emt 0:00:59] Strongly threatening ...c4.} 40. Kf4 {[%emt 0:02:58]} c4 {[%emt 0:00:12][%cal Bc5c4,Bc4c3,Bc3b2][%mdl 32] ( -> ...c3!)} 41. Ke4 $2 {[%emt 0:00:06][%mdl 8192]} (41. Kg5 $15) 41... c3 $1 {[%emt 0:00:18] Black mates.} 42. Kd3 {[%emt 0:00:06]} cxb2 {[%emt 0:00:02]} 43. Kc2 {[%emt 0:00:00] [#]} a3 $1 {[%emt 0:00:02]} 44. Bg5 {[%emt 0:00:14]} (44. h5 Nd2) 44... a2 {[%emt 0:00:03] Weighted Error Value: White=0.46/Black=0.23 (precise)} 0-1

[Event "MPL-4 Indian Chess Tour 2022"]
[Site "Chess24"]
[Date "2022.09.27"]
[Round "2.7"]
[White "Adhiban, B.."]
[Black "Puranik, Abhimanyu"]
[Result "1/2-1/2"]
[ECO "D32"]
[WhiteElo "2603"]
[BlackElo "2603"]
[Annotator "TA"]
[PlyCount "97"]
[EventDate "2022.09.29"]
[EventType "tourn (rapid)"]
[EventCountry "NET"]
[SourceTitle "playchess.com"]
[Source "ChessBase"]
[SourceQuality "1"]
[WhiteTeam "India"]
[BlackTeam "India"]
[WhiteTeamCountry "IND"]
[BlackTeamCountry "IND"]
[TimeControl "900+10"]

{[%evp 23,97,23,28,27,24,32,24,20,34,53,76,70,68,51,64,7,14,14,14,18,31,6,13,6,10,0,4,3,2,-91,-91,-91,-3,-3,0,0,0,0,0,0,0,0,87,87,87,87,93,93,93,93,93,47,93,93,93,16,47,16,16,16,16,16,16,16,16,16,16,10,10,0,8,0,10,0,0,0]} 1. Nf3 {[%emt 0:00:00]} Nf6 {[%emt 0:00:00]} 2. c4 {[%emt 0:00:03]} c5 {[%emt 0:00:06]} 3. Nc3 {[%emt 0:00:03]} e6 {[%emt 0:00:05]} 4. e3 {[%emt 0:00:12]} d5 {[%emt 0:00:03]} 5. cxd5 {[%emt 0:00:04]} exd5 {[%emt 0:00:05]} 6. d4 {[%emt 0:00:26]} Nc6 {[%emt 0:00:02]} 7. Bb5 {[%emt 0:00:03]} Bd6 {[%emt 0:01:25]} 8. O-O {[%emt 0:01:24]} O-O {[%emt 0:00:10]} 9. dxc5 {[%emt 0:00:15]} Bxc5 {[%emt 0:00:02]} 10. b3 {[%emt 0:00:01]} a6 {[%emt 0:00:15]} 11. Bxc6 {[%emt 0:00:50]} bxc6 {[%emt 0:00:03]} 12. Bb2 {[%emt 0:00:01]} Bg4 {[%emt 0:00:06]} 13. Rc1 {[%emt 0:00:06][%cal Oc3d5] With the idea Nxd5! 13.Ne2 is the modern continuation. D32: Tarrasch Defence: Sidelines and lines without g3.} Bd6 {[%emt 0:00:04]} 14. h3 {[%emt 0:00:02]} Bh5 {[%emt 0:00:03]} 15. Ne2 {[%emt 0:00:04] White has an edge.} Rc8 {[%emt 0:01:43] [#]} 16. Nf4 $146 {[%emt 0:01:16]} ({Predecessor:} 16. Qd3 Ne4 17. Nfd4 Qd7 18. f3 Nc5 19. Qd2 Bg6 20. Nf4 Bxf4 21. Rxc5 Bd6 22. Rcc1 {½-½ (52) Roiz,M (2605)-Oganian,M (2423) St Petersburg 2018}) 16... Bxf4 {[%emt 0:00:18]} 17. exf4 {[%emt 0:00:00] Black must now prevent g4.} Bxf3 {[%emt 0:00:41]} 18. Qxf3 {[%emt 0:00:03]} Re8 {[%emt 0:01:58]} 19. Rfe1 {[%emt 0:00:30] White is more active.} (19. Rfd1 $14) 19... Rxe1+ $1 $11 {[%emt 0:01:29]} 20. Rxe1 {[%emt 0:00:03]} d4 {[%emt 0:00:39]} 21. b4 {[%emt 0:02:37]} Qb6 {[%emt 0:01:38]} 22. a3 {[%emt 0:01:26]} a5 {[%emt 0:01:41]} 23. Qd3 {[%emt 0:02:50]} c5 {[%emt 0:00:03]} 24. Qf5 {[%emt 0:00:09]} Rb8 {[%emt 0:00:14]} 25. Rc1 $40 {[%emt 0:00:37][%mdl 128] White has some attack.} axb4 {[%emt 0:00:25] ...Re8 is the strong threat.} 26. Qxc5 {[%emt 0:01:15]} (26. Rxc5 $11 Rd8 27. axb4) 26... Qxc5 $17 {[%emt 0:00:46]} 27. Rxc5 {[%emt 0:00:01]} bxa3 {[%emt 0:00:32]} (27... d3 $17 28. Bxf6 d2) 28. Bxa3 $11 {[%emt 0:00:53][%mdl 4096] Endgame KRB-KRN} h5 {[%emt 0:00:02]} 29. Rc4 {[%emt 0:01:06]} d3 {[%emt 0:00:48] [#] Strongly threatening ...d2.} 30. Bb4 {[%emt 0:03:01]} Ra8 {[%emt 0:01:00]} 31. Rd4 {[%emt 0:00:23]} Ra1+ {[%emt 0:00:26]} 32. Kh2 {[%emt 0:00:02]} Rd1 {[%emt 0:00:08]} (32... Ra2 $11) 33. Kg3 $16 {[%emt 0:00:14]} Kh7 {[%emt 0:00:04]} 34. Kf3 {[%emt 0:00:16]} Kg6 {[%emt 0:00:15]} 35. g4 {[%emt 0:00:02]} hxg4+ {[%emt 0:00:39]} 36. hxg4 {[%emt 0:00:00]} Rg1 {[%emt 0:00:53] [#]} 37. g5 {[%emt 0:00:12]} ({Much weaker is} 37. Rxd3 $6 Rxg4 38. Ra3 Rh4 $11) (37. Rd6 $1 $16 {Threatens to win with g5.} Kh7 38. g5 (38. Rxd3 Nxg4 39. Rd6 Nf6 $11)) 37... Nh5 {[%emt 0:00:32]} (37... Nh7 $14) 38. Rxd3 {[%emt 0:00:07]} f6 {[%emt 0:00:14]} 39. Be7 {[%emt 0:00:07]} (39. Bd2 $16) 39... Ra1 {[%emt 0:00:11]} 40. gxf6 {[%emt 0:00:30]} gxf6 {[%emt 0:00:03] The position is equal.} 41. Bc5 {[%emt 0:00:07]} Ra4 {[%emt 0:00:11]} 42. Be3 {[%emt 0:00:04]} Ng7 {[%emt 0:00:04]} 43. Rd6 {[%emt 0:00:03]} Nf5 {[%emt 0:00:02]} 44. Rb6 {[%emt 0:00:02]} Ra3 {[%emt 0:00:04]} 45. Ke4 {[%emt 0:00:02]} Ra4+ {[%emt 0:00:03]} 46. Kd5 {[%emt 0:00:06]} Ra3 {[%emt 0:00:10]} 47. Ke4 {[%emt 0:00:09]} Ra4+ {[%emt 0:00:02]} 48. Kd5 {[%emt 0:00:09]} Ne7+ {[%emt 0:00:08]} 49. Kc5 {[%emt 0:00:25] Weighted Error Value: White=0.16 (very precise) /Black=0.12 (very precise)} 1/2-1/2